Cogmind - Beta 13 @@@ ROGUE MODE // 2024.04.17 @ 22:20:51 Player: Gold Spoon Result: Self-destructed Performance ------------- Evolutions (1) 500 Regions Visited (3) 600 Robots Destroyed (14) 70 Value Destroyed (219) 219 Prototype IDs (0) 0 Alien Tech Used (0) 0 Bonus (0) 0 TOTAL SCORE: 1389 Bonus ------- None Cogmind --------- Core Integrity 227/400 Matter 270/300 Energy 100/100 System Corruption 0% Temperature Cool (10) Movement Flying (120) Ox1 Location -9/Materials Parts ------- > --- POWER (1) -------- (None) > --- PROPULSION (3) --- Flight Unit > --- UTILITY (3) ------ Small Storage Unit Sensor Array > --- WEAPON (2) ------- (None) > --- INVENTORY (8) ---- Mace Peak State ------------ > --- POWER ------------ Light Ion Engine > --- PROPULSION ------- Hover Unit Hover Unit > --- UTILITY ---------- Small Storage Unit Sensor Array > --- WEAPON ----------- Light Assault Rifle Light Assault Rifle > --- INVENTORY -------- Assault Rifle [Rating: 7] Favorites ----------- Power Light Ion Engine Engine Light Ion Engine Propulsion Hover Unit Wheel Compact Wheel Hover Unit Hover Unit Flight Unit Flight Unit Utility Small Storage Unit Device Sensor Array Storage Small Storage Unit Weapon Light Assault Rifle Energy Gun Medium Laser Ballistic Gun Light Assault Rifle Build | -11 -10 -10 -9 ------- Run | Yrd Mat Min Mat Slots Evolved 2 | . . . 2 Power . | . . . . Propulsion 1 | . . . 1 Utility 1 | . . . 1 Weapon . | . . . . Parts Attached 21 | 6 13 . 2 Power 2 | 1 1 . . Engine 2 | 1 1 . . Core . | . . . . Reactor . | . . . . Propulsion 10 | 2 6 . 2 Treads . | . . . . Leg . | . . . . Wheel 2 | 2 . . . Hover 4 | . 4 . . Flight 4 | . 2 . 2 Utility 4 | 1 3 . . Device 2 | . 2 . . Storage 2 | 1 1 . . Processor . | . . . . Hackware . | . . . . Protection . | . . . . Artifact . | . . . . Weapon 5 | 2 3 . . Energy Gun 1 | 1 . . . Energy Cannon . | . . . . Ballistic Gun 4 | 1 3 . . Ballistic Cannon . | . . . . Launcher . | . . . . Special Weapon . | . . . . Impact Weapon . | . . . . Slashing Weapon . | . . . . Piercing Weapon . | . . . . Special Melee Weapon . | . . . . Unidentified Prototypes . | . . . . Parts Lost 8 | . 2 . 6 Power 2 | . 1 . 1 Propulsion 4 | . 1 . 3 Utility . | . . . . Weapon 2 | . . . 2 Highest Loss Streak 4 | . 2 . 4 To Critical Strikes . | . . . . Average Slot Usage (%) 83 | . 86 100 66 Engine 11 | . 11 14 9 Wheel 4 | . 6 . . Hover 12 | . 12 28 6 Flight 6 | . 6 . 7 Device 10 | . 9 14 11 Storage 11 | . 10 14 11 Energy Gun 2 | . 3 . . Ballistic Gun 23 | . 24 28 20 Naked Turns . | . . . . Heaviest Build 12 | 12 12 11 11 Greatest Support 32 | 32 32 12 12 Greatest Overweight (x) 3 | . 1 . 3 Average Overweight (x) . | . . . . Largest Inventory Capacity 8 | 8 8 8 8 Average Capacity 7 | 6 7 8 8 Most Carried 5 | 5 5 1 3 Average Carried 1 | . 1 1 1 Final Capacity 8 | 8 8 8 8 Final Carried 1 | . 1 1 1 Class Distribution -------------------- 61% | Scavenger-Mutant 38% | Mutant Dominant Class ---------------- Mutant | -10/Materials Scavenger-Mutant | -10/Mines Scavenger-Mutant | -9/Materials Resources | -11 -10 -10 -9 ----------- Run | Yrd Mat Min Mat Matter Collected 430 | 243 187 . . Remotely . | . . . . Salvage Created 281 | . 235 . 46 Parts 31 | . 25 . 6 Haulers Intercepted . | . . . . Recyclers Shooed . | . . . . Parts Field Recycled . | . . . . Retrieved Matter . | . . . . Parts Self-Destructed . | . . . . Prevented . | . . . . Kills | -11 -10 -10 -9 ------- Run | Yrd Mat Min Mat Combat Hostiles Destroyed 12 | . 9 . 3 Guns 12 | . 9 . 3 Classes Destroyed 4 | . 4 . . Worker 1 | . 1 . . Watcher 1 | . 1 . . Swarmer 9 | . 6 . 3 Grunt 3 | . 3 . . Best Kill Streak 6 | . 6 . 3 Combat Bots Only 5 | . 5 . 3 Max Kills in Single Turn 2 | . 2 . 1 Gunslinging 1 | . 1 . . Exploded . | . . . . Melee . | . . . . Uniques/NPCs Destroyed . | . . . . Combat | -11 -10 -10 -9 -------- Run | Yrd Mat Min Mat Hostile Shots Fired 144 | . 78 3 63 Missed 46 | . 26 2 18 Damage Taken 989 | . 468 14 507 Core 314 | . 127 14 173 Absorbed by Shields . | . . . . Core Remaining (%) 71 | 100 . 43 . Volleys Fired 45 | . 31 . 14 Largest 2 | . 2 . 2 Hottest 70 | . 70 . 40 Shots Fired 89 | . 61 . 28 Gun 89 | . 61 . 28 Cannon . | . . . . Launcher . | . . . . Special . | . . . . Kinetic 81 | . 53 . 28 Thermal 8 | . 8 . . Explosive . | . . . . Electromagnetic . | . . . . Robot Hit Streak 7 | . 7 . 3 Robot Miss Streak 5 | . 5 . 5 Penetration Max . | . . . . Secondary Targets 4 | . 4 . . Max Gunslinging Chain 1 | . 1 . . Shots Hit Robots 43 | . 33 . 10 Core Hits 23 | . 17 . 6 Critical Kills . | . . . . Critical Parts Destroyed . | . . . . Critical Strikes 1 | . 1 . . Burn 1 | . 1 . . Melee Attacks . | . . . . Impact . | . . . . Slashing . | . . . . Piercing . | . . . . Sneak Attacks . | . . . . Combat Hostiles . | . . . . Follow-up Attacks . | . . . . Damage Inflicted 445 | . 331 . 114 Guns 438 | . 331 . 107 Cannons . | . . . . Explosions . | . . . . Melee . | . . . . Ramming 7 | . . . 7 Kinetic 361 | . 254 . 107 Thermal 77 | . 77 . . Explosive . | . . . . Electromagnetic . | . . . . Impact . | . . . . Slashing . | . . . . Piercing . | . . . . Highest Corruption . | . . . . Average Corruption . | . . . . Corruption Purged . | . . . . Corruption Blocked . | . . . . Overload Shots . | . . . . Overflow Damage . | . . . . Projectiles . | . . . . Explosions . | . . . . Melee . | . . . . Knockbacks . | . . . . Impact . | . . . . Kinetic . | . . . . Secondary . | . . . . Self-Inflicted Damage 3 | . . . 3 Shots . | . . . . Rammed 2 | . . . 2 Targets Rammed 2 | . . . 2 Kicked . | . . . . Crushed . | . . . . Highest Temperature 45 | . 45 . 1 Average Temperature 11 | . 11 . 1 Received Heat Transfer 252 | . 105 9 138 Siege Activations . | . . . . Robots Corrupted . | . . . . Combat Hostiles . | . . . . Parts Fried . | . . . . Impact Corruptions . | . . . . Robots Melted . | . . . . Combat Hostiles . | . . . . Parts Melted 2 | . 2 . . Heat Transferred 296 | . 296 . . Parts Sabotaged . | . . . . Parts Stolen . | . . . . Parts Stripped . | . . . . Power Chain Reactions . | . . . . Alert | -11 -10 -10 -9 ------- Run | Yrd Mat Min Mat Peak Influence 308 | . 308 47 122 Initial 47 | . . 47 18 Average 107 | . 136 47 74 Maximum Alert Level 1 | . 1 . . Low Security (%) 86 | 100 79 100 100 Level 1 13 | . 20 . . Level 2 . | . . . . Level 3 . | . . . . Level 4 . | . . . . Level 5 . | . . . . High Security . | . . . . Max Security . | . . . . Squads Dispatched 1 | . 1 . . Investigation 1 | . 1 . . Extermination . | . . . . Reinforcement . | . . . . Assault . | . . . . Garrison . | . . . . Intercept . | . . . . Searches Triggered . | . . . . Construction Impeded . | . . . . Haulers Reinforced . | . . . . Active Scanning Responses . | . . . . Cargo Convoy Interrupts . | . . . . Stealth | -11 -10 -10 -9 --------- Run | Yrd Mat Min Mat Distress Signals 2 | . . . 2 Communications Jammed . | . . . . Distress Signals . | . . . . Times Spotted 36 | . 17 2 17 Peak Tracking Total 12 | . 4 2 12 Tactical Retreats 2 | . 2 . . Traps | -11 -10 -10 -9 ------- Run | Yrd Mat Min Mat Traps Triggered . | . . . . Indirectly . | . . . . Trap Hack Attempts . | . . . . Triggered . | . . . . Disarmed . | . . . . Reprogrammed . | . . . . Reused . | . . . . Traps Extracted . | . . . . Installed . | . . . . Triggered . | . . . . Machines | -11 -10 -10 -9 ---------- Run | Yrd Mat Min Mat Machines Disabled 1 | . 1 . . Max in Single Turn 1 | . 1 . . Machines Repaired . | . . . . Machines Dismantled . | . . . . Machines Sabotaged . | . . . . Overloaded Fab Kills . | . . . . Hacking | -11 -10 -10 -9 --------- Run | Yrd Mat Min Mat Machines Accessed 5 | . 4 . 1 Terminals 5 | . 4 . 1 Fabricators . | . . . . Repair Stations . | . . . . Recycling Units . | . . . . Scanalyzers . | . . . . Garrison Access . | . . . . Total Hacks 9 | . 6 . 3 Successful 5 | . 4 . 1 Failed 4 | . 2 . 2 Catastrophic 2 | . 2 . . Database Lockouts . | . . . . Manual . | . . . . Terminals 9 | . 6 . 3 Fabricators . | . . . . Repair Stations . | . . . . Recycling Units . | . . . . Scanalyzers . | . . . . Garrison Access . | . . . . Terminal Hacks 5 | . 4 . 1 Emergency Access Points 2 | . 1 . 1 Alert Level 2 | . 2 . . Zone Layout 1 | . 1 . . Fabricator Hacks . | . . . . Repair Station Hacks . | . . . . Recycling Unit Hacks . | . . . . Scanalyzer . | . . . . Garrison Access Hacks . | . . . . Unauthorized Hacks . | . . . . Terminals . | . . . . Fabricators . | . . . . Repair Stations . | . . . . Recycling Units . | . . . . Scanalyzers . | . . . . Garrison Access . | . . . . Data Cores Recovered . | . . . . Used . | . . . . Hacking Detections 4 | . 3 . 1 Full Trace Events 1 | . 1 . . Feedback Events . | . . . . Feedback Blocked . | . . . . Robot Schematics Acquired . | . . . . Robots Built . | . . . . Authchips . | . . . . Time . | . . . . Total Robot Build Rating . | . . . . Part Schematics Acquired . | . . . . Parts Built . | . . . . Authchips . | . . . . Time . | . . . . Total Part Build Rating . | . . . . Parts Repaired . | . . . . Time . | . . . . Parts Recycled . | . . . . Recycled Matter . | . . . . Retrieved Matter . | . . . . Retrieved Components . | . . . . Parts Scanalyzed . | . . . . Part Schematics Acquired . | . . . . Parts Damaged . | . . . . Bothacking | -11 -10 -10 -9 ------------ Run | Yrd Mat Min Mat Used RIF Installer . | . . . . Robots Hacked . | . . . . Non-combat . | . . . . Combat . | . . . . Robot Hacks Applied . | . . . . Relay Couplers Released . | . . . . Fabnet Peak Effective % . | . . . . Robots Rewired . | . . . . Allies Hacked . | . . . . Hacks Repelled . | . . . . Allies | -11 -10 -10 -9 -------- Run | Yrd Mat Min Mat Total Allies . | . . . . Largest Group . | . . . . Highest-Rated Group . | . . . . Highest-Rated Ally . | . . . . Total Orders . | . . . . Ally Attacks . | . . . . Total Damage . | . . . . Kills . | . . . . Allies Corrupted . | . . . . Allies Melted . | . . . . Intel | -11 -10 -10 -9 ------- Run | Yrd Mat Min Mat Robot Analysis Total . | . . . . Derelict Logs Recovered . | . . . . Drone Launches . | . . . . Drone Recoveries . | . . . . Exploration | -11 -10 -10 -9 ------------- Run | Yrd Mat Min Mat Turns Passed 799 | 42 511 82 164 Spaces Moved 979 | 37 668 147 127 Core 25 | 12 . . 13 Treads . | . . . . Legs . | . . . . Wheels 116 | 25 91 . . Hover 531 | . 323 147 61 Flight 307 | . 254 . 53 Fastest Speed 37 | 50 37 56 37 Average Speed 63 | 83 58 56 95 Slowest Speed 200 | 100 120 56 200 Overloaded Moves . | . . . . Propulsion Burnouts . | . . . . Robots Hopped 3 | . 3 . . Cave-ins Triggered . | . . . . Exploration Rate (%) 37 | 3 79 45 21 Regions Visited 3 Branch Regions 1 Pre-discovered Areas . | . . . . Known Exits Taken . | . . . . Unknown Exits Taken 3 | 1 1 1 . Scrap Searched . | . . . . Spaces Dug . | . . . . Terrain Destroyed . | . . . . Melee . | . . . . Projectile . | . . . . AOE . | . . . . Terrain Rammed . | . . . . Walls Destroyed . | . . . . Machines Disabled . | . . . . Actions | -11 -10 -10 -9 --------- Run | Yrd Mat Min Mat Total 1078 | 48 737 146 147 Wait 6 | . 6 . . Move 970 | 36 661 146 127 Hop 3 | . 3 . . Pick Up 21 | 6 13 . 2 Fast Attach . | . . . . Attach 16 | 6 8 . 2 Detach 1 | . 1 . . Swap 5 | . 5 . . Drop 9 | . 9 . . Fire 45 | . 31 . 14 Melee . | . . . . Ram 2 | . . . 2 Kick . | . . . . Crush . | . . . . Escape Stasis . | . . . . Rewire . | . . . . Trap . | . . . . Miscellaneous . | . . . . Route ------- -11/Scrapyard -10/Materials (discovered 4 exits: *Mat x3 / [*Min]) -10/Mines -9/Materials (discovered 1 exit: [*Min]) History --------- Turn | Location | Event 24 | -11/Scrapyard | Discovered new exit (range 16) 43 | -11/Scrapyard | Entered Materials 238 | -10/Materials | Discovered new exit (range 4) 304 | -10/Materials | Discovered new exit (range 3) 381 | -10/Materials | Core integrity fell below 50% 449 | -10/Materials | Discovered new exit (range 15) 468 | -10/Materials | Discovered new exit (range 8) 554 | -10/Materials | Entered Mines 633 | -10/Mines | Discovered new exit (range 5) 636 | -10/Mines | Entered Materials 636 | -9/Materials | Evolved 2 slots: Propulsion x1, Utility x1 725 | -9/Materials | Discovered new exit (range 16) 757 | -9/Materials | Build established: Scavenger-Mutant 800 | -9/Materials | Self-destructed Last Messages --------------- R-06 Scavenger collects Lgt. Ion Engine. K-01 Serf collects debris. R-06 Scavenger collects Flight Unit. EXIT=FOUND R-06 Scavenger collects Flight Unit. Acquired Flight Unit. Connecting with Terminal... Current location identified: Materials >>Access(Emergency) Found 3 emergency access doors: (56,58) (56,45) (56,48) Map updated. W-16 Scout sends out distress signal. Slammed into G-34 Mercenary. Lgt. Ion Engine destroyed. Flight Unit destroyed. Slammed into Y-45 Defender. Lgt. Assault Rifle destroyed. Map ----- +----------------------------------------------------+ | ?????????????????????????????????????????????????? | | ?????????????????????????????????????????????????? | | ?????????????????????????????????????????????????? | | ?????????????????????????????????????????????????? | | ?????????????????????????????????????????????????? | | ?????????????????????????????????????????????????? | | ?????????????????????????????????????????????????? | | ?????????????????????????????????????????????????? | | ?????????????????????????????????????????????????? | | ?????????????????????????????????????????????????? | | ?????????????????????????????????????????????????? | | ??????????????????????# ?????????????????????????? | | ??????????????????????# ?????????????????????????? | | ??????????????????????# ?????????????????????????? | | ??????????????????????# ?????????????????????????? | | ??????????????????????# ###???????#??????????????? | | ??????????????????????#gg #?????? Y??????????????? | | ??????????????????????# ????? #??????????????? | | ??????????????????????# #???? ???????????????? | | ??????????????????????# #??? ????????????????? | | ?????????????????????## ##? "T?????????????????? | | ?????????????????????# ##w########???????????? | | ?????????????????????# #???????????? | | ?????????????????????# Y ??????????????? | | ?????????????????????# ??????????????????? | | ?????????????????????# @ #?????????????????????? | | ??????????????######### ##?????????????????????? | | ??????????????# # #??????????????????????? | | ??????????????# /Ybu#??????????????????????? | | ??????????????# """ # #??????????????????????? | | ??????????????# """ # ######?????????????????? | | ??????????????# """ #Y g #########?????????? | | ??????????????# + g # #?????????? | | ??????????????######### / #?????????? | | ??????????????????????###### # #?????????? | | ????????????????????????#### ####+####?????????? | | ????????????????????????#" #?# #????????????? | | ????????????????????????#"" #?# #????????????? | | ????????????????????????#!! #?#/#????????????? | | ????????????????????????#"" < # ???????????? | | ????????????????????????#!! #= ?????????? | | ????????????????????????#"" # """ #???????? | | ????????????????????????#" # """"" #???????? | | ????????????????????????#### ## """"" / ??????? | | ??????????????????########## ## """"" # ?????? | | ?????????????????# T / ## ""???#? ????? | | ?????????????????# # ## ??????? #???? | | ?????????????????# """ """ # ## ????????????? | | ?????????????????? """ """ # ####+###??????????? | | ???????????????????""" """ # # = #??????????? | +----------------------------------------------------+ Best States ------------- Heat Dissipation 28 Energy Generation 10 Energy Capacity 125 Matter Stores 300 Matter Capacity 300 Sight Range 16 Robot Scan Range 14 Terrain Scan Density 10 Evasion (%) 62 Item Schematics ----------------- None Robot Schematics ------------------ None Fabricated ------------ Nothing Alien Tech Used ----------------- None Achievements -------------- None Challenges ------------ None Game ------ Seed PoweredGlidesysBlade Manual? 0 Play Time 00:12:31 Cumulative 9.1 hours Start 2024.04.17 @ 22:10:21 End 2024.04.17 @ 22:20:51 Sessions 1 Manual Loads 0 Difficulty Rogue Special Mode None Game No. 14 Rogue 12 Adventurer 2 Explorer 0 Win Type - Total 0 Types 0/0/0/0/0/0/0/0/0 Lore% 18 Gallery% 12 Achievement% 14 Wizard Run 0 Options --------- Layout 1 ASCII 0 Keyboard 0 Movement Mouse Keybinds 0 Fullscreen 1 Font 24/Smallcaps Map View 50x40 Zoom Use 0% Tactical HUD 0 Map Filters NONE Filters NONE Steam 1 RUN: 87d72a75-ee8a-43d3-ba0c-216251b5ffd5